bitfinex/quotes_BTCUSD_20241116
["timestamp","ask_amount","ask_price","bid_price","bid_amount"]
[1731758976521,0.76838655,90806.0,90805.0,0.0008577]
[1731758976969,0.5392,90806.0,90805.0,0.1109837]
[1731758977453,0.5392,90806.0,90805.0,0.1178634]
[1731758977681,0.005,90799.0,90795.0,0.220276]
[1731758977903,0.005,90799.0,90796.0,0.220272]
[1731758978133,0.005,90799.0,90798.0,0.110134]
[1731758978587,0.005,90799.0,90797.0,0.01100742]
[1731758978795,0.005,90799.0,90728.0,0.5]
[1731758978796,0.005,90799.0,90798.0,0.110134]
[1731758979462,0.005,90799.0,90797.0,0.110134]
[1731758979765,0.005,90799.0,90792.0,0.0110075]
[1731758979979,0.005,90799.0,90798.0,0.110134]
[1731758980189,0.005,90799.0,90795.0,0.220276]
[1731758980190,0.005,90799.0,90796.0,0.0110075]
[1731758980401,0.005,90799.0,90798.0,0.110134]
[1731758980810,0.5442,90799.0,90798.0,0.110134]
[1731758981514,0.5392,90799.0,90798.0,0.110134]
[1731758981967,9.0,90807.0,90800.0,0.220262]
[1731758982179,9.0,90807.0,90806.0,0.110124]
[1731758983287,9.0,90807.0,90806.0,0.12113127]
[1731758984005,9.0017178,90807.0,90806.0,0.12113127]
[1731758984246,9.0017178,90807.0,90806.0,0.01100727]
[1731758985387,9.9591659,90807.0,90806.0,0.01100727]
[1731758985594,9.9591659,90807.0,90743.0,0.220401]
[1731758985595,0.12015,90785.0,90768.0,0.00519218]
[1731758985825,0.110158,90779.0,90764.0,0.00519218]
[1731758986097,0.110158,90779.0,90760.0,0.00011037]
[1731758986098,0.110158,90779.0,90770.0,0.110168]
[1731758986099,0.005,90776.0,90770.0,0.110168]
[1731758986335,0.005,90776.0,90775.0,0.110162]
[1731758986541,0.52819273,90778.0,90777.0,0.11016]
[1731758986775,0.1652037,90796.0,90795.0,0.110138]
[1731758987005,0.69339643,90796.0,90795.0,0.110138]
[1731758987767,0.005,90791.0,90755.0,0.00011037]
[1731758988007,0.005,90791.0,90750.0,0.0754]
[1731758988008,0.005,90778.0,90772.0,0.00011037]
[1731758988239,0.005,90784.0,90772.0,0.00011037]
[1731758988240,0.115164,90773.0,90772.0,0.00011037]
[1731758988466,0.005,90776.0,90772.0,0.00011037]
[1731758988939,0.52819273,90775.0,90772.0,0.00011037]
[1731758989169,0.52819273,90775.0,90758.0,0.220366]
[1731758989407,0.52819273,90775.0,90772.0,0.110166]
[1731758989667,0.52819273,90775.0,90758.0,0.220366]
[1731758989668,0.52819273,90775.0,90755.0,0.220373]
[1731758989919,0.52819273,90775.0,90771.0,0.110166]
[1731758990149,0.52819273,90775.0,90755.0,0.10906255]
[1731758990150,0.52819273,90775.0,90774.0,0.110163]
[1731758990383,9.2219668,90807.0,90742.0,0.00011037]
[1731758990384,0.52819273,90787.0,90786.0,0.110149]
[1731758991346,0.52819273,90787.0,90786.0,0.11702983]
[1731758994151,9.0017178,90807.0,90786.0,0.11702983]
[1731758994152,0.52819273,90803.0,90802.0,0.110129]
[1731758994382,0.1652037,90806.0,90805.0,0.110126]
[1731758994608,0.1652037,90806.0,90805.0,0.22606938]
[1731758995041,9.0017178,90807.0,90805.0,0.22606938]
[1731758995042,9.0017178,90807.0,90806.0,0.110124]
[1731758995310,9.0017178,90807.0,90806.0,0.22606738]
[1731758995553,9.0017178,90807.0,90806.0,0.11700483]
[1731758995554,9.52991053,90807.0,90806.0,0.11700483]
[1731758995773,9.52991053,90807.0,90806.0,0.11700219]
[1731758996457,9.0017178,90807.0,90806.0,0.11700219]
[1731758998258,9.0017178,90807.0,90806.0,0.110124]
[1731758999879,9.52991053,90807.0,90806.0,0.110124]
[1731759000316,9.52991053,90807.0,90806.0,0.11700215]
[1731759001738,9.52991053,90807.0,90806.0,0.110124]
[1731759001955,9.0017178,90807.0,90806.0,0.22606472]
[1731759002384,9.0017178,90807.0,90806.0,0.00687817]
[1731759002805,9.0017178,90807.0,90806.0,0.11700217]
[1731759004210,9.0017178,90807.0,90806.0,0.00687817]
[1731759004452,9.65003353,90807.0,90806.0,0.00687817]
[1731759004669,0.005,90802.0,90798.0,0.110133]
[1731759004880,9.53491053,90807.0,90795.0,0.2211334]
[1731759004881,0.005,90800.0,90799.0,0.0068789]
[1731759005114,0.120132,90800.0,90799.0,0.0068789]
[1731759005348,0.120132,90800.0,90795.0,0.0008584]
[1731759005349,0.63645083,90796.0,90795.0,0.0008584]
[1731759006024,0.82291338,90796.0,90795.0,0.0008584]
[1731759006257,1.04925172,90796.0,90795.0,0.01186624]
[1731759006490,0.90961338,90796.0,90795.0,0.01186624]
[1731759006733,0.90961338,90796.0,90773.0,0.00011037]
[1731759006734,0.115163,90775.0,90773.0,0.00011037]
[1731759006956,0.52131383,90774.0,90773.0,0.00011037]
[1731759007166,0.52131383,90774.0,90773.0,0.110164]
[1731759008140,0.52131383,90774.0,90747.0,0.220392]
[1731759008351,0.005,90776.0,90773.0,0.110164]
[1731759008582,0.005,90776.0,90770.0,0.110168]
[1731759008583,0.7094037,90775.0,90770.0,0.110168]
[1731759008831,0.7094037,90775.0,90753.0,0.10906255]
[1731759008832,0.5442,90775.0,90753.0,0.10906255]
[1731759009109,0.5392,90774.0,90754.0,0.220375]
[1731759009316,0.5392,90774.0,90767.0,0.330514]
[1731759009552,0.5392,90774.0,90756.0,0.220371]
[1731759009553,0.5392,90774.0,90754.0,0.10906255]
[1731759009793,0.1652037,90770.0,90754.0,0.10906255]
[1731759010007,0.5442,90774.0,90754.0,0.10906255]
[1731759010008,0.005,90772.0,90754.0,0.10906255]
[1731759010225,0.005,90772.0,90762.0,0.220354]
[1731759010407,0.005,90772.0,90754.0,0.32943755]
[1731759010408,0.005,90772.0,90766.0,0.110172]
[1731759010698,0.654364,90774.0,90739.0,0.00011037]
[1731759010699,0.005,90764.0,90739.0,0.00011037]
[1731759010904,0.005,90764.0,90755.0,0.110186]
[1731759011154,0.005,90764.0,90750.0,0.220385]
[1731759011380,0.005,90764.0,90744.0,0.220398]
[1731759011381,0.005,90764.0,90759.0,0.11018]
[1731759011382,0.5392,90763.0,90759.0,0.11018]
[1731759011612,0.5392,90763.0,90758.0,0.110182]
[1731759011828,0.5392,90763.0,90744.0,0.220398]
[1731759011829,0.5392,90763.0,90759.0,0.110181]
[1731759012043,0.5392,90763.0,90756.0,0.110185]
[1731759012257,0.5392,90763.0,90720.0,0.09863992]
[1731759012258,0.005,90753.0,90738.0,0.00011037]
[1731759012497,0.5392,90753.0,90748.0,0.22039]
[1731759012734,0.5392,90753.0,90752.0,0.1110489]
[1731759012988,0.005,90756.0,90752.0,0.2212379]
[1731759012989,0.5442,90756.0,90752.0,0.2212379]
[1731759013203,0.5442,90756.0,90753.0,0.220378]
[1731759013440,0.005,90756.0,90755.0,0.110186]
[1731759013678,0.005,90755.0,90754.0,0.110187]
[1731759013933,0.005,90764.0,90756.0,0.110185]
[1731759013934,0.005,90757.0,90756.0,0.110185]
[1731759014225,0.005,90757.0,90752.0,0.0008589]
[1731759014226,0.120189,90753.0,90752.0,0.0008589]
[1731759014437,0.22925155,90753.0,90752.0,0.0008589]
[1731759014899,0.22925155,90753.0,90734.0,0.00011037]
[1731759014900,0.120211,90735.0,90734.0,0.00011037]
[1731759015117,0.33397355,90735.0,90734.0,0.00011037]
[1731759015338,0.33397355,90735.0,90716.0,0.0008581]
[1731759015339,0.005,90720.0,90716.0,0.0008581]
[1731759015575,0.115223,90725.0,90716.0,0.0008581]
[1731759015576,0.005,90725.0,90717.0,0.220465]
[1731759015784,0.005,90723.0,90722.0,0.110226]
[1731759016730,0.005,90751.0,90722.0,0.110226]
[1731759016731,0.005,90738.0,90722.0,0.12007808]
[1731759016964,0.0817,90748.0,90740.0,0.110204]
[1731759016965,0.005,90741.0,90740.0,0.110204]
[1731759017180,0.1702037,90742.0,90733.0,0.220425]
[1731759017181,0.1702037,90742.0,90741.0,0.110203]
[1731759017424,0.005,90746.0,90745.0,0.110198]
[1731759017668,0.005,90746.0,90734.0,0.23143801]
[1731759017669,0.01,90742.0,90738.0,0.01101401]
[1731759017890,0.005,90746.0,90739.0,0.0068837]
[1731759018131,0.0456,90756.0,90723.0,0.10906255]
[1731759018132,0.005,90750.0,90749.0,0.110194]
[1731759018349,0.005,90750.0,90749.0,0.12809162]
[1731759018559,0.005,90750.0,90749.0,0.1170777]
[1731759018769,0.005,90750.0,90723.0,0.10906255]
[1731759018988,0.005,90750.0,90749.0,0.110194]
[1731759019224,0.220344,90768.0,90750.0,0.110192]
[1731759019225,0.005,90751.0,90750.0,0.110192]
[1731759019881,0.005,90756.0,90755.0,0.110186]
[1731759020117,0.0456,90771.0,90751.0,0.440766]
[1731759020118,0.1702037,90770.0,90751.0,0.440766]
[1731759020336,0.005,90767.0,90751.0,0.32944555]
[1731759020590,0.01,90767.0,90766.0,0.110173]
[1731759021274,0.01,90767.0,90762.0,0.330533]
[1731759021275,0.005,90763.0,90762.0,0.330533]
[1731759021700,0.005,90763.0,90762.0,0.110178]
[1731759021926,0.005,90767.0,90760.0,0.220361]
[1731759021927,0.005,90766.0,90760.0,0.220361]
[1731759022206,0.005,90766.0,90751.0,0.10906255]
[1731759022207,0.005,90762.0,90761.0,0.110179]
[1731759022421,0.005,90762.0,90751.0,0.10906255]
[1731759022422,0.01,90762.0,90749.0,0.0008584]
[1731759022665,0.01,90762.0,90752.0,0.22038]
[1731759022927,0.01,90762.0,90749.0,0.0008584]
[1731759023164,0.1652037,90766.0,90749.0,0.0008584]
[1731759023165,0.01,90750.0,90749.0,0.0008584]
[1731759023386,0.5492,90750.0,90749.0,0.1110524]
[1731759023818,0.5442,90750.0,90749.0,0.1110524]
[1731759024031,0.5392,90757.0,90756.0,0.110185]
[1731759024281,0.1652037,90780.0,90756.0,0.10906255]
[1731759024282,0.5392,90764.0,90756.0,0.10906255]
[1731759024499,0.5392,90764.0,90752.0,0.220379]
[1731759024500,0.5392,90764.0,90763.0,0.110177]
[1731759024713,0.1652037,90770.0,90768.0,0.11017]
[1731759024714,0.7094037,90770.0,90768.0,0.11017]
[1731759024944,0.005,90765.0,90763.0,0.220352]
[1731759025152,0.005,90764.0,90763.0,0.330529]
[1731759025384,0.005,90764.0,90763.0,0.110177]
[1731759026993,0.5392,90769.0,90749.0,0.0008584]
[1731759026994,0.005,90765.0,90764.0,0.110175]
[1731759027211,0.01,90765.0,90764.0,0.110175]
[1731759027885,0.01691655,90825.0,90764.0,0.110175]
[1731759027886,0.005,90767.0,90766.0,0.110173]
[1731759028098,0.5392,90775.0,90749.0,0.0008584]
[1731759028099,0.005,90765.0,90749.0,0.0008584]
[1731759028314,0.005,90765.0,90764.0,0.110175]
[1731759028536,0.005,90769.0,90765.0,0.110174]
[1731759028537,0.005,90766.0,90765.0,0.110174]
[1731759029631,0.005,90766.0,90762.0,0.220356]
[1731759029871,0.005,90766.0,90765.0,0.110174]
[1731759030775,0.005,90767.0,90766.0,0.110173]
[1731759032132,0.005,90781.0,90780.0,0.110156]
[1731759032372,0.005,90781.0,90771.0,0.220334]
[1731759032373,0.005,90775.0,90771.0,0.220334]
[1731759032553,0.005,90775.0,90739.0,0.22041]
[1731759032554,0.01,90775.0,90774.0,0.110163]
[1731759033038,0.5392,90781.0,90751.0,0.220383]
[1731759033039,0.5442,90781.0,90751.0,0.220383]
[1731759033346,0.5392,90791.0,90790.0,0.110144]
[1731759033596,0.1652037,90791.0,90790.0,0.110144]
[1731759033839,0.1652037,90805.0,90790.0,0.110144]
[1731759033840,0.1652037,90805.0,90804.0,0.110127]
[1731759033841,0.5392,90805.0,90804.0,0.110127]
[1731759034077,0.1669205,90806.0,90805.0,0.110126]
[1731759034289,0.1669205,90806.0,90805.0,0.21918855]
[1731759034529,0.0017168,90806.0,90805.0,0.21918855]
[1731759035864,0.1652037,90821.0,90806.0,0.110124]
[1731759035865,7.5035346,90807.0,90806.0,0.110124]
[1731759036083,1.47807977,90807.0,90806.0,0.21918655]
[1731759036338,1.38997977,90807.0,90806.0,0.21918655]
[1731759036564,1.27985477,90807.0,90806.0,0.21918655]
[1731759037046,1.15175477,90807.0,90806.0,0.21918655]
[1731759037271,0.45658444,90807.0,90806.0,0.25128655]
[1731759037511,0.17020627,90807.0,90806.0,0.21918655]
[1731759037741,0.17020627,90807.0,90806.0,0.22606206]
[1731759038409,0.15255031,90820.0,90806.0,0.11593806]
[1731759038636,0.1652037,90830.0,90806.0,0.11593806]
[1731759038637,0.1652037,90833.0,90823.0,0.220208]
[1731759038854,0.1652037,90833.0,90832.0,0.110093]
[1731759039068,0.1652037,90833.0,90832.0,0.11696851]
[1731759039307,0.1652037,90843.0,90842.0,0.110081]
[1731759039520,0.5392,90852.0,90832.0,0.00687551]
[1731759039937,0.5392,90852.0,90796.0,0.27243064]
[1731759039938,0.5392,90852.0,90851.0,0.11007]
[1731759040153,0.5392,90852.0,90851.0,0.11694534]
[1731759040830,0.5392,90852.0,90851.0,0.11694504]
[1731759041536,0.0468,90853.0,90852.0,0.110069]
[1731759041746,0.0468,90853.0,90839.0,0.220169]
[1731759041747,0.0807,90849.0,90796.0,0.220272]
[1731759041959,0.5392,90848.0,90834.0,0.00687584]
[1731759042169,0.5392,90848.0,90847.0,0.110075]
[1731759042403,0.5392,90848.0,90847.0,0.11695084]
[1731759042652,0.0807,90849.0,90848.0,0.110073]
[1731759042880,0.6199,90849.0,90848.0,0.11694884]
[1731759043092,0.5392,90853.0,90852.0,0.110069]
[1731759043322,0.0807,90864.0,90854.0,0.110066]
[1731759043323,0.5392,90861.0,90854.0,0.110066]
[1731759043542,0.0807,90864.0,90854.0,0.22600439]
[1731759043543,0.5392,90860.0,90854.0,0.22600439]
[1731759043790,0.5392,90863.0,90854.0,0.22600439]
[1731759044708,0.5392,90866.0,90854.0,0.23700286]
[1731759045200,0.5392,90872.0,90854.0,0.23700286]
[1731759045417,0.0017186,90898.0,90880.0,0.110035]
[1731759045418,0.5392,90884.0,90880.0,0.110035]
[1731759045634,0.5392,90884.0,90880.0,0.22597339]
[1731759045869,0.5392,90884.0,90880.0,0.23697186]
[1731759047019,0.5392,90884.0,90880.0,0.21909755]
[1731759047262,0.5392,90884.0,90880.0,0.23696355]
[1731759047733,0.0017176,90897.0,90880.0,0.23696355]
[1731759048208,0.0017176,90897.0,90880.0,0.12001851]
[1731759048443,0.0017176,90897.0,90880.0,0.23005351]
[1731759048661,0.0017176,90897.0,90880.0,0.21218751]
[1731759048971,0.0017176,90897.0,90880.0,0.23005169]
[1731759049201,0.0017176,90897.0,90880.0,0.23005161]
[1731759049877,0.0017176,90897.0,90880.0,0.22216912]
[1731759050328,0.1669213,90897.0,90880.0,0.22216912]
[1731759050792,0.1669213,90897.0,90880.0,0.23591219]
[1731759051744,0.2443037,90907.0,90880.0,0.23591219]
[1731759051745,0.1669185,90915.0,90914.0,0.109994]
[1731759051961,0.1669185,90915.0,90914.0,0.1278581]
[1731759051962,0.0017148,90915.0,90914.0,0.1278581]
[1731759052170,0.0017148,90915.0,90914.0,0.14160117]
[1731759052917,0.0017148,90915.0,90914.0,0.14159356]
[1731759054094,0.5409148,90915.0,90914.0,0.14159356]
[1731759054303,0.5459148,90915.0,90914.0,0.14159356]
[1731759054744,0.5509148,90915.0,90914.0,0.03159956]
[1731759054964,0.5971148,90915.0,90914.0,0.03159956]
[1731759055166,0.5971148,90915.0,90914.0,0.01786062]
[1731759055606,0.5971148,90915.0,90905.0,0.110004]
[1731759055607,0.01,90906.0,90905.0,0.110004]
[1731759055812,0.01,90906.0,90905.0,0.12099824]
[1731759056030,0.01,90906.0,90905.0,0.03160838]
[1731759056031,0.6278,90906.0,90905.0,0.03160838]
[1731759056244,0.6278,90906.0,90905.0,0.01786558]
[1731759056734,0.737803,90906.0,90905.0,0.01786558]
[1731759057209,0.6278,90906.0,90905.0,0.01786558]
[1731759058091,0.6278,90906.0,90905.0,0.03160838]
[1731759058540,0.84686555,90906.0,90905.0,0.03160838]
[1731759058799,0.84886555,90906.0,90905.0,0.03160838]
[1731759059249,0.84886555,90906.0,90894.0,0.110018]
[1731759059250,0.005,90896.0,90894.0,0.110018]
[1731759059482,0.005,90896.0,90832.0,0.02062213]
[1731759059483,0.95387055,90906.0,90881.0,0.110034]
[1731759059484,0.005,90882.0,90881.0,0.110034]
[1731759059701,0.005,90882.0,90881.0,0.1416487]
[1731759059934,0.005,90882.0,90881.0,0.0316147]
[1731759059935,0.5442,90882.0,90881.0,0.0316147]
[1731759060159,0.6228,90882.0,90881.0,0.0316147]
[1731759060399,0.6228,90882.0,90881.0,0.1416487]
[1731759060668,0.6178,90882.0,90881.0,0.1416487]
[1731759060883,0.6228,90882.0,90881.0,0.1416487]
[1731759061093,0.6178,90882.0,90881.0,0.1416487]
[1731759061314,0.5392,90882.0,90881.0,0.110034]
[1731759061600,0.5392,90882.0,90881.0,0.14164926]
[1731759061784,0.47047565,90882.0,90881.0,0.14164926]
[1731759062639,0.0462,90903.0,90881.0,0.14164926]
[1731759062640,0.47047565,90896.0,90895.0,0.110017]
[1731759062861,0.1652037,90903.0,90902.0,0.110008]
[1731759063075,0.0786,90912.0,90902.0,0.110008]
[1731759063076,0.0786,90912.0,90905.0,0.110004]
[1731759063291,0.005858,90906.0,90905.0,0.110004]
[1731759063542,0.47633365,90906.0,90905.0,0.14161926]
[1731759063784,0.47633365,90906.0,90905.0,0.03161526]
[1731759063993,0.47633365,90906.0,90905.0,0.01786949]
[1731759063994,0.59333665,90906.0,90905.0,0.01786949]
[1731759064243,0.63753665,90906.0,90905.0,0.01786949]
[1731759064463,0.63753665,90906.0,90881.0,0.110034]
[1731759064464,0.005,90882.0,90881.0,0.110034]
[1731759064696,0.005,90901.0,90881.0,0.110034]
[1731759064697,0.005,90888.0,90881.0,0.12790284]
[1731759064936,0.47547565,90888.0,90887.0,0.110026]
[1731759065167,0.47547565,90888.0,90883.0,0.220062]
[1731759065168,0.47047565,90891.0,90890.0,0.110023]
[1731759065406,0.005,90904.0,90903.0,0.110007]
[1731759065599,0.005858,90906.0,90903.0,0.01099621]
[1731759065851,0.000858,90906.0,90905.0,0.110004]
[1731759066089,0.000858,90906.0,90905.0,0.12787284]
[1731759066303,0.000858,90906.0,90905.0,0.23693539]
[1731759066528,0.000858,90906.0,90905.0,0.25001458]
[1731759067008,0.1652037,90914.0,90913.0,0.109995]
[1731759067009,0.11660045,90914.0,90913.0,0.109995]
[1731759067219,0.11660045,90914.0,90913.0,0.16285949]
[1731759067456,0.0017148,90915.0,90914.0,0.109994]
[1731759067691,0.0017148,90915.0,90914.0,0.12786284]
[1731759067948,0.0017148,90915.0,90914.0,0.109994]
[1731759068190,0.0017148,90915.0,90914.0,0.12785499]
[1731759068408,0.0017148,90915.0,90914.0,0.13603334]
[1731759069519,0.0017148,90915.0,90914.0,0.13603766]
[1731759069954,0.0067148,90915.0,90914.0,0.01786253]
[1731759070221,0.0067148,90915.0,90914.0,0.0260469]
[1731759070430,0.0067148,90915.0,90914.0,0.1360409]
[1731759070645,0.0067148,90915.0,90914.0,0.0260469]
[1731759070858,0.1217068,90915.0,90914.0,0.0260469]
[1731759071071,0.1217068,90915.0,90914.0,0.01505457]
[1731759071072,0.1237068,90915.0,90914.0,0.01505457]
[1731759071303,0.1237068,90915.0,90908.0,0.110001]
[1731759071304,0.01,90909.0,90908.0,0.110001]
[1731759071513,0.01,90909.0,90908.0,0.11687225]
[1731759071961,0.01,90909.0,90908.0,0.12506173]
[1731759071994,0.0067148,90915.0,90914.0,0.109994]
[1731759072224,0.0017148,90915.0,90914.0,0.12505473]
[1731759073127,0.0017148,90915.0,90914.0,0.13604597]
[1731759074053,0.1217068,90915.0,90914.0,0.01506073]
[1731759074262,0.1237068,90915.0,90914.0,0.01506073]
[1731759074501,0.1237068,90915.0,90914.0,0.12505473]
[1731759074502,0.0067148,90915.0,90914.0,0.12505473]
[1731759074734,0.0117148,90915.0,90914.0,0.12505473]
[1731759075168,0.0067148,90915.0,90914.0,0.12505473]
[1731759075663,0.5459148,90915.0,90914.0,0.12505473]
[1731759076130,0.002,90933.0,90914.0,0.12505473]
[1731759076131,0.7044037,90938.0,90914.0,0.13511517]
[1731759076342,0.7044037,90938.0,90904.0,0.22001]
[1731759076343,0.1652037,90938.0,90937.0,0.109966]
[1731759076552,0.1652037,90938.0,90937.0,0.13601862]
[1731759076553,0.7044037,90938.0,90937.0,0.13601862]
[1731759077008,0.5392,90938.0,90937.0,0.13601862]
[1731759077229,0.5392,90938.0,90937.0,0.109966]
[1731759077441,0.5392,90938.0,90937.0,0.12782413]
[1731759077656,0.5392,90938.0,90937.0,0.11817132]
[1731759077865,0.5392,90938.0,90937.0,0.12782423]
[1731759078096,0.5392,90938.0,90937.0,0.12503694]
[1731759079257,0.5492,90938.0,90937.0,0.01507094]
[1731759080179,0.5492,90938.0,90937.0,0.00820239]
[1731759080419,0.5492,90938.0,90937.0,0.11816839]
[1731759080630,0.5492,90938.0,90937.0,0.11816479]
[1731759080631,0.4982025,90938.0,90937.0,0.11816479]
[1731759081098,0.4932025,90938.0,90937.0,0.11816479]
[1731759081350,0.4932025,90938.0,90937.0,0.13602506]
[1731759081588,0.4882025,90938.0,90937.0,0.13602506]
[1731759081817,0.4890597,90938.0,90937.0,0.13602506]
[1731759082294,0.4990597,90938.0,90937.0,0.02605906]
[1731759082507,0.6090247,90938.0,90937.0,0.02605906]
[1731759082939,0.5010597,90938.0,90937.0,0.02605906]
[1731759083174,0.5010597,90938.0,90937.0,0.01506812]
[1731759083408,0.6110247,90938.0,90937.0,0.01506812]
[1731759084287,0.6110247,90938.0,90937.0,0.02606]
[1731759085006,0.84718725,90938.0,90937.0,0.02606]
[1731759085240,0.84518725,90938.0,90937.0,0.02606]
[1731759085448,0.84718725,90938.0,90937.0,0.02606]
[1731759087039,0.84718725,90938.0,90887.0,0.09809971]
[1731759087040,0.005,90917.0,90887.0,0.09809971]
[1731759087330,0.005,90917.0,90878.0,0.24524929]
[1731759087331,0.219938,90935.0,90899.0,0.110012]
[1731759087332,0.005,90912.0,90899.0,0.110012]
[1731759087514,0.5361025,90916.0,90898.0,0.1269258]
[1731759087515,0.5361025,90916.0,90908.0,0.11]
[1731759087516,0.005,90910.0,90908.0,0.11]
[1731759087759,0.005,90910.0,90909.0,0.01919272]
[1731759087978,0.005,90910.0,90909.0,0.0260632]
[1731759088671,0.01,90910.0,90909.0,0.0260632]
[1731759088895,0.119998,90910.0,90909.0,0.0260632]
[1731759089102,0.119998,90910.0,90909.0,0.02606781]
[1731759089103,0.012,90910.0,90909.0,0.02606781]
[1731759089793,0.121998,90910.0,90909.0,0.02606781]
[1731759090273,0.01,90910.0,90909.0,0.02606781]
[1731759090524,0.01,90910.0,90909.0,0.13606781]
[1731759090775,0.0479,90916.0,90915.0,0.109992]
[1731759091017,0.0792,90923.0,90915.0,0.109992]
[1731759091018,0.0842,90923.0,90922.0,0.109984]
[1731759091280,0.0842,90923.0,90909.0,0.12005616]
[1731759091281,0.0842,90923.0,90912.0,0.219992]
[1731759091282,0.005,90921.0,90912.0,0.219992]
[1731759091478,0.005,90921.0,90907.0,0.09809971]
[1731759091479,0.005,90922.0,90918.0,0.109989]
[1731759091480,0.005,90919.0,90918.0,0.109989]
[1731759091693,0.01,90919.0,90918.0,0.02606783]
[1731759092117,0.119988,90919.0,90918.0,0.02606783]
[1731759092393,0.121988,90919.0,90918.0,0.02606783]
[1731759092606,0.661188,90919.0,90918.0,0.02606783]
[1731759092824,0.5442,90919.0,90918.0,0.02606783]
[1731759093037,0.5492,90919.0,90918.0,0.13605683]
[1731759093479,0.5492,90919.0,90918.0,0.109989]
[1731759093704,0.5492,90919.0,90918.0,0.13606493]
[1731759094177,0.5492,90919.0,90918.0,0.02607593]
[1731759094385,0.659188,90919.0,90918.0,0.02607593]
[1731759094817,0.5492,90919.0,90918.0,0.02607593]
[1731759095071,0.661188,90919.0,90918.0,0.02607593]
[1731759095309,0.5492,90919.0,90918.0,0.02607593]
[1731759095521,0.659188,90919.0,90918.0,0.02607593]
[1731759095730,0.661188,90919.0,90918.0,0.02607593]
[1731759096157,0.659188,90919.0,90918.0,0.02607593]
[1731759096394,0.5492,90919.0,90918.0,0.13606493]
[1731759096667,0.5492,90919.0,90918.0,0.109989]
[1731759096882,0.5492,90919.0,90918.0,0.12785197]
[1731759096883,0.5442,90919.0,90918.0,0.12785197]
[1731759097096,0.5442,90919.0,90918.0,0.14018794]
[1731759097334,0.5442,90919.0,90918.0,0.13606431]
[1731759097335,0.5492,90919.0,90918.0,0.13606431]
[1731759097796,0.5492,90919.0,90918.0,0.13606418]
[1731759098017,0.5392,90919.0,90918.0,0.13606418]
[1731759098228,0.0800569,90923.0,90921.0,0.109985]
[1731759098229,0.5392,90922.0,90921.0,0.109985]
[1731759098445,0.5392,90922.0,90921.0,0.13606001]
[1731759099826,0.5392,90922.0,90921.0,0.14920078]
[1731759100048,0.5392,90922.0,90921.0,0.13820938]
[1731759100311,0.5392,90922.0,90921.0,0.23666932]
[1731759100525,0.5392,90922.0,90921.0,0.16293729]
[1731759101187,0.5442,90922.0,90921.0,0.16293729]
[1731759101401,0.5442,90922.0,90921.0,0.05295229]
[1731759102276,0.5442,90922.0,90921.0,0.0392144]
[1731759102723,0.704284,90922.0,90921.0,0.0392144]
[1731759103021,0.706284,90922.0,90921.0,0.02607345]
[1731759103913,0.89834655,90922.0,90921.0,0.02607345]
[1731759104141,0.90334655,90922.0,90921.0,0.02607345]
[1731759104357,0.90134655,90922.0,90921.0,0.01508246]
[1731759104584,0.90134655,90922.0,90914.0,0.0017138]
[1731759104585,0.114992,90915.0,90914.0,0.0017138]
[1731759104809,0.63910954,90915.0,90914.0,0.01270729]
[1731759105022,0.64610954,90915.0,90914.0,0.0017138]
[1731759107691,0.64410954,90915.0,90914.0,0.0017138]
[1731759108157,0.53411754,90915.0,90914.0,0.0017138]
[1731759108396,0.53411754,90915.0,90914.0,0.01270821]
[1731759108639,0.64410954,90915.0,90914.0,0.01270821]
[1731759109529,0.53411754,90915.0,90914.0,0.01270821]
[1731759109750,0.64410954,90915.0,90914.0,0.01270821]
[1731759110194,0.64610954,90915.0,90914.0,0.01270821]
[1731759111168,0.64410954,90915.0,90914.0,0.01270821]
[1731759112032,0.64610954,90915.0,90914.0,0.01270821]
[1731759114045,0.75517209,90915.0,90914.0,0.01270821]
[1731759114750,0.75517209,90915.0,90907.0,0.00478772]
[1731759114751,0.002,90903.0,90899.0,0.00478772]
[1731759114980,0.002,90903.0,90889.0,0.31860689]
[1731759114981,0.012,90899.0,90898.0,0.00478772]
[1731759115221,0.012,90899.0,90889.0,0.220047]
[1731759115222,0.01,90898.0,90897.0,0.00478772]
[1731759115455,0.01,90898.0,90897.0,0.110014]
[1731759115673,0.51140933,90899.0,90892.0,0.11002]
[1731759115674,0.005,90893.0,90892.0,0.11002]
[1731759115905,0.51640933,90893.0,90892.0,0.11002]
[1731759116638,0.51640933,90893.0,90892.0,0.11689158]
[1731759116851,0.51640933,90893.0,90892.0,0.12511086]
[1731759118281,0.52140933,90893.0,90892.0,0.01509086]
[1731759118721,0.63142833,90893.0,90892.0,0.01509086]
[1731759119400,0.63342833,90893.0,90892.0,0.00821928]
[1731759119608,0.63342833,90893.0,90892.0,0.01509151]
[1731759123348,0.74249088,90893.0,90892.0,0.01509151]
[1731759123605,0.74249088,90893.0,90881.0,0.0017144]
[1731759123606,0.122032,90882.0,90881.0,0.0017144]
[1731759123821,0.122032,90882.0,90881.0,0.00858797]
[1731759123822,0.63344133,90882.0,90881.0,0.00858797]
[1731759124326,0.74250388,90882.0,90881.0,0.00858797]
[1731759124562,0.74250388,90882.0,90881.0,0.0017144]
[1731759124563,0.87330388,90882.0,90881.0,0.0017144]
[1731759124787,0.87330388,90882.0,90855.0,0.110064]
[1731759124788,0.005,90858.0,90855.0,0.110064]
[1731759125001,0.005,90858.0,90854.0,0.001716]
[1731759125002,0.005,90858.0,90857.0,0.110063]
[1731759125214,0.005,90858.0,90854.0,0.001716]
[1731759125215,0.5442,90858.0,90854.0,0.001716]
[1731759125431,0.005,90855.0,90854.0,0.001716]
[1731759125648,0.01,90855.0,90854.0,0.001716]
[1731759125892,0.01,90855.0,90854.0,0.111782]
[1731759126186,0.01,90855.0,90854.0,0.001716]
[1731759126602,0.659265,90855.0,90854.0,0.001716]
[1731759128697,0.661265,90855.0,90854.0,0.001716]
[1731759129143,0.77032755,90855.0,90854.0,0.001716]
[1731759130545,0.77532755,90855.0,90854.0,0.001716]
[1731759130962,0.78032755,90855.0,90854.0,0.001716]